fUSD/lending_fUSD_20260502
["ID","MTS","AMOUNT","RATE_DAILY","PERIOD"]
[421454339,1777689038000,-200.0,0.00022528,2]
[421454384,1777689039000,-258.96193505,0.00025,2]
[421454383,1777689039000,-2000.0,0.00024782,2]
[421454380,1777689039000,-699.73,0.00024658,2]
[421454381,1777689039000,-1000.0,0.00024658,2]
[421454382,1777689039000,-221.0,0.00024686,2]
[421454378,1777689039000,-500.0,0.00024644,2]
[421454374,1777689039000,-2788.0718005,0.00024149,2]
[421454376,1777689039000,-292.6136498,0.00024439,2]
[421454377,1777689039000,-260.33636433,0.00024577,2]
[421454375,1777689039000,-478.3,0.00024324,2]
[421454372,1777689039000,-671.3468574,0.00024149,2]
[421454373,1777689039000,-16486.1285774,0.00024149,2]
[421454387,1777689039000,-243.0,0.00025,2]
[421454379,1777689039000,-150.0,0.00024658,2]
[421454386,1777689039000,-346.0,0.00025,2]
[421454398,1777689039000,-207.67600527,0.00025205,2]
[421454385,1777689039000,-291.03806495,0.00025,2]
[421454388,1777689039000,-356.0,0.00025,2]
[421454402,1777689039000,-181.949,0.00025582,2]
[421454401,1777689039000,-448.0,0.000209,7]
[421454397,1777689039000,-1834.0,0.00025,2]
[421454399,1777689039000,-103.79176326,0.00025582,2]
[421454396,1777689039000,-214.0,0.00025,2]
[421454400,1777689039000,-1381.09443239,0.00025582,2]
[421454394,1777689039000,-425.0,0.00025,2]
[421454392,1777689039000,-26.74354847,0.00025,2]
[421454393,1777689039000,-401.0,0.00025,2]
[421454390,1777689039000,-499.83800957,0.00025,2]
[421454391,1777689039000,-564.0886184,0.00025,2]
[421454389,1777689039000,-122.32982356,0.00025,2]
[421454395,1777689039000,-176.0,0.00025,2]
[421454424,1777689040000,-2000.0,0.00026402,2]
[421454421,1777689040000,-2500.0,0.00026302,2]
[421454419,1777689040000,-200.0,0.00026287,2]
[421454422,1777689040000,-150.0,0.0002638,2]
[421454420,1777689040000,-478.3,0.00026296,2]
[421454417,1777689040000,-753.98063035,0.00026184,2]
[421454409,1777689040000,-2493.60700435,0.00025582,2]
[421454412,1777689040000,-742.74714231,0.00025676,2]
[421454414,1777689040000,-200.0,0.00026027,2]
[421454413,1777689040000,-500.0,0.00026016,2]
[421454410,1777689040000,-821.0,0.00025582,10]
[421454415,1777689040000,-9859.54713621,0.00026027,2]
[421454411,1777689040000,-1175.0,0.00025582,10]
[421454416,1777689040000,-1601.0,0.00026117,3]
[421454423,1777689040000,-27775.26101732,0.000264,2]
[421454418,1777689040000,-2000.0,0.000262,2]
[421454426,1777689040000,-2674.73359272,0.00026575,2]
[421454428,1777689040000,-150.0,0.00027,2]
[421454438,1777689040000,-256.35726704,0.00027396,2]
[421454439,1777689040000,-25000.0,0.00027397,7]
[421454437,1777689040000,-293.65895426,0.00027396,2]
[421454436,1777689040000,-500.0,0.00027396,2]
[421454429,1777689040000,-600.0,0.00027,2]
[421454435,1777689040000,-1094.38604953,0.00027396,10]
[421454440,1777689040000,-6046.70580371,0.00027397,7]
[421454434,1777689040000,-3225.08662581,0.00027297,2]
[421454433,1777689040000,-5417.97874585,0.00027297,2]
[421454431,1777689040000,-152.0,0.00027107,3]
[421454430,1777689040000,-6709.73421418,0.00027046,2]
[421454427,1777689040000,-1007.79,0.000268,20]
[421454425,1777689040000,-1642.4046447,0.00026463,2]
[421454432,1777689040000,-3768.41248657,0.00027213,68]
[421454453,1777689041000,-611.305685,0.00027397,2]
[421454451,1777689041000,-699.73,0.00027397,2]
[421454449,1777689041000,-207.39,0.00027397,2]
[421454450,1777689041000,-300.0,0.00027397,2]
[421454447,1777689041000,-399.33929877,0.00027397,2]
[421454448,1777689041000,-1500.0,0.00027397,2]
[421454443,1777689041000,-25000.0,0.00027397,7]
[421454442,1777689041000,-904.91687189,0.00027397,2]
[421454444,1777689041000,-175.29476885,0.00027397,2]
[421454446,1777689041000,-240.91280342,0.00027397,5]
[421454441,1777689041000,-150.0,0.00027397,2]
[421454452,1777689041000,-611.305685,0.00027397,2]
[421454445,1777689041000,-162.41759262,0.00027397,7]
[421454454,1777689041000,-611.305685,0.00027397,2]
[421454458,1777689041000,-611.305685,0.00027397,2]
[421454474,1777689041000,-378.66,0.00027397,20]
[421454456,1777689041000,-611.305685,0.00027397,2]
[421454472,1777689041000,-139.88701065,0.00025582,10]
[421454473,1777689041000,-315.39645942,0.00027397,20]
[421454468,1777689041000,-151.50672,0.00027397,2]
[421454467,1777689041000,-151.0,0.00027397,2]
[421454471,1777689041000,-332.11298935,0.00025582,10]
[421454466,1777689041000,-151.0,0.00027397,2]
[421454469,1777689041000,-287.12112935,0.00027397,20]
[421454463,1777689041000,-611.305685,0.00027397,2]
[421454459,1777689041000,-611.305685,0.00027397,2]
[421454460,1777689041000,-611.305685,0.00027397,2]
[421454461,1777689041000,-611.305685,0.00027397,2]
[421454457,1777689041000,-611.305685,0.00027397,2]
[421454455,1777689041000,-611.305685,0.00027397,2]
[421454465,1777689041000,-611.305685,0.00027397,2]
[421454499,1777689043000,-7627.85508416,0.00027397,10]
[421454497,1777689043000,-151.0,0.00027397,2]
[421454500,1777689043000,-319.71,0.00027397,10]
[421454498,1777689043000,-151.0,0.00027397,2]
[421454505,1777689043000,-444.82513644,0.00027436,2]
[421454502,1777689043000,-18806.8,0.00027397,10]
[421454504,1777689043000,-801.34805681,0.00027432,2]
[421454495,1777689043000,-151.0,0.00027397,2]
[421454501,1777689043000,-14620.59491584,0.00027397,10]
[421454496,1777689043000,-151.0,0.00027397,2]
[421454487,1777689043000,-446.25566088,0.00021465,2]
[421454494,1777689043000,-18.82241123,0.00027397,20]
[421454488,1777689043000,-1423.32433912,0.00021465,2]
[421454493,1777689043000,-1082.0,0.00027397,10]
[421454492,1777689043000,-762.0,0.00027397,10]
[421454489,1777689043000,-1664.0,0.00023637,2]
[421454486,1777689043000,-1012.41521112,0.00020637,2]
[421454503,1777689043000,-15672.34,0.00027397,10]
[421454485,1777689043000,-651.58478888,0.00020637,2]
[421454484,1777689043000,-1486.97371006,0.00017637,2]
[421454483,1777689043000,-320.70928994,0.00017637,2]
[421454491,1777689043000,-988.0,0.00027137,2]
[421454506,1777689043000,-500.0,0.00027447,2]
[421454490,1777689043000,-1783.15572848,0.00026575,2]
[421454508,1777689043000,-498.47827701,0.00027466,2]
[421454507,1777689043000,-801.34805681,0.00027466,2]
[421454532,1777689043000,-655.64841012,0.00027671,2]
[421454531,1777689043000,-988.0,0.00027671,2]
[421454529,1777689043000,-444.82513644,0.00027632,2]
[421454526,1777689043000,-444.82513644,0.00027593,2]
[421454527,1777689043000,-801.34805681,0.00027603,2]
[421454528,1777689043000,-498.47827701,0.00027603,2]
[421454525,1777689043000,-2000.0,0.00027585,2]
[421454524,1777689043000,-655.64841012,0.0002758,2]
[421454523,1777689043000,-801.34805681,0.00027568,2]
[421454521,1777689043000,-175.29476883,0.00027534,2]
[421454530,1777689043000,-801.34805681,0.00027637,2]
[421454522,1777689043000,-444.82513644,0.00027554,2]
[421454520,1777689043000,-430.26897805,0.00027534,2]
[421454509,1777689043000,-444.82513644,0.00027476,2]
[421454512,1777689043000,-801.34805681,0.000275,2]
[421454511,1777689043000,-203.50385505,0.000275,2]
[421454514,1777689043000,-444.82513644,0.00027515,2]
[421454510,1777689043000,-655.64841012,0.00027489,2]
[421454515,1777689043000,-801.34805681,0.00027534,2]
[421454517,1777689043000,-175.23414467,0.00027534,2]
[421454518,1777689043000,-160.63129928,0.00027534,2]
[421454519,1777689043000,-498.47827701,0.00027534,2]
[421454516,1777689043000,-431.34558686,0.00027534,2]
[421454559,1777689044000,-478.3,0.00028267,2]
[421454562,1777689044000,-1555.14538,0.000285,2]
[421454565,1777689044000,-1329.64251086,0.00028646,15]
[421454561,1777689044000,-4452.43294498,0.00028484,73]
[421454563,1777689044000,-758.3,0.0002863,2]
[421454566,1777689044000,-758.3,0.00028661,7]
[421454564,1777689044000,-760.16,0.0002863,2]
[421454568,1777689044000,-758.3,0.00028693,30]
[421454571,1777689044000,-760.16,0.00028725,2]
[421454572,1777689044000,-758.3,0.00028756,7]
[421454575,1777689044000,-758.3,0.00028788,30]
[421454567,1777689044000,-760.16,0.00028661,7]
[421454569,1777689044000,-760.16,0.00028693,30]
[421454574,1777689044000,-5417.97874585,0.00028764,2]
[421454573,1777689044000,-760.16,0.00028756,7]
[421454578,1777689044000,-760.16,0.0002882,2]
[421454576,1777689044000,-760.16,0.00028788,30]
[421454580,1777689044000,-760.16,0.00028852,7]
[421454579,1777689044000,-758.3,0.00028852,7]
[421454577,1777689044000,-758.3,0.0002882,2]
[421454560,1777689044000,-423.0,0.00028484,5]
[421454582,1777689044000,-760.16,0.00028883,30]
[421454570,1777689044000,-758.3,0.00028725,2]
[421454558,1777689044000,-3225.08662574,0.0002824,2]
[421454545,1777689044000,-643.0,0.00028,2]
[421454555,1777689044000,-10000.0,0.00028,30]
[421454581,1777689044000,-758.3,0.00028883,30]
[421454535,1777689044000,-444.82513644,0.00027671,2]
[421454533,1777689044000,-801.34805681,0.00027671,2]
[421454534,1777689044000,-431.34558686,0.00027671,2]
[421454536,1777689044000,-160.63129928,0.00027671,2]
[421454539,1777689044000,-175.29476883,0.00027671,2]
[421454538,1777689044000,-498.47827701,0.00027671,2]
[421454537,1777689044000,-453.16207001,0.00027671,2]
[421454540,1777689044000,-130917.23648225,0.00027931,2]
[421454541,1777689044000,-156.91596912,0.00027964,5]
[421454556,1777689044000,-5417.97874585,0.00028031,2]
[421454543,1777689044000,-51427.99011039,0.00028,2]
[421454546,1777689044000,-611.305685,0.00028,7]
[421454547,1777689044000,-611.305685,0.00028,7]
[421454550,1777689044000,-151.0,0.00028,7]
[421454553,1777689044000,-151.0,0.00028,7]
[421454552,1777689044000,-151.0,0.00028,7]
[421454549,1777689044000,-611.305685,0.00028,7]
[421454548,1777689044000,-611.305685,0.00028,7]
[421454551,1777689044000,-151.0,0.00028,7]
[421454554,1777689044000,-714.29,0.00028,2]
[421454557,1777689044000,-150.77,0.00028102,2]
[421454542,1777689044000,-335.0,0.00028,5]
[421454584,1777689044000,-758.3,0.00028915,2]
[421454544,1777689044000,-160.0,0.00028,2]
[421454585,1777689044000,-760.16,0.00028915,2]
[421454613,1777689044000,-2000.0,0.00029336,2]
[421454614,1777689044000,-4398.60666882,0.000294,30]
[421454615,1777689044000,-671.3468574,0.00029424,2]
[421454618,1777689044000,-150.0,0.00029534,2]
[421454617,1777689044000,-1500.0,0.000295,2]
[421454616,1777689044000,-5417.97874585,0.00029498,2]
[421454619,1777689044000,-150.77,0.00029824,2]
[421454620,1777689044000,-4526.49,0.00029872,2]
[421454622,1777689044000,-714.29,0.00029889,2]
[421454621,1777689044000,-150.0,0.00029873,5]
[421454635,1777689044000,-1029.05776363,0.00029914,7]
[421454625,1777689044000,-611.305685,0.00029899,7]
[421454626,1777689044000,-611.305676,0.00029899,7]
[421454623,1777689044000,-611.305685,0.00029899,7]
[421454628,1777689044000,-151.0,0.00029899,7]
[421454627,1777689044000,-151.0,0.00029899,7]
[421454630,1777689044000,-151.0,0.00029899,7]
[421454629,1777689044000,-151.0,0.00029899,7]
[421454632,1777689044000,-1300.0,0.000299,10]
[421454631,1777689044000,-79826.44539289,0.000299,2]
[421454633,1777689044000,-1005.36,0.000299,30]
[421454634,1777689044000,-666.1865275,0.00029914,2]
[421454583,1777689044000,-3120.0,0.00028904,2]
[421454610,1777689044000,-760.16,0.00029201,2]
[421454611,1777689044000,-758.39,0.00029232,7]
[421454624,1777689044000,-611.305685,0.00029899,7]
[421454609,1777689044000,-758.3,0.00029201,2]
[421454587,1777689044000,-760.16,0.00028947,7]
[421454608,1777689044000,-3225.08662574,0.00029184,2]
[421454586,1777689044000,-758.3,0.00028947,7]
[421454589,1777689044000,-758.3,0.00028979,30]
[421454590,1777689044000,-760.16,0.00028979,30]
[421454588,1777689044000,-150.77,0.00028963,2]
[421454593,1777689044000,-650.0,0.00029,2]
[421454594,1777689044000,-1500.0,0.00029,2]
[421454592,1777689044000,-508.01729311,0.00029,2]
[421454596,1777689044000,-760.16,0.0002901,2]
[421454595,1777689044000,-758.3,0.0002901,2]
[421454598,1777689044000,-760.16,0.00029042,7]
[421454591,1777689044000,-1760.79876677,0.00029,2]
[421454607,1777689044000,-760.16,0.00029169,30]
[421454599,1777689044000,-758.3,0.00029074,30]
[421454601,1777689044000,-758.3,0.00029105,2]
[421454600,1777689044000,-760.16,0.00029074,30]
[421454604,1777689044000,-758.3,0.00029137,7]
[421454602,1777689044000,-760.16,0.00029105,2]
[421454605,1777689044000,-760.16,0.00029137,7]
[421454606,1777689044000,-758.3,0.00029169,30]
[421454603,1777689044000,-201.11497927,0.00029137,2]
[421454597,1777689044000,-758.3,0.00029042,7]
[421454612,1777689044000,-760.21,0.00029232,7]
[421454675,1777689045000,-214.41349796,0.0003013,2]
[421454674,1777689045000,-204.1969992,0.0003013,2]
[421454670,1777689045000,-3225.08662574,0.00030127,2]
[421454673,1777689045000,-641.8767798,0.0003013,2]
[421454665,1777689045000,-200.0,0.00030104,30]
[421454671,1777689045000,-1086.79760435,0.0003013,2]
[421454668,1777689045000,-187.0,0.00030113,30]
[421454666,1777689045000,-258.0,0.00030104,30]
[421454667,1777689045000,-5000.0,0.00030106,2]
[421454672,1777689045000,-14022.86633622,0.0003013,2]
[421454669,1777689045000,-277.0,0.00030121,30]
[421454677,1777689045000,-699.73,0.00030137,2]
[421454685,1777689045000,-550.0,0.00030155,30]
[421454680,1777689045000,-29798.11032481,0.00030137,120]
[421454676,1777689045000,-154.0,0.0003013,30]
[421454679,1777689045000,-150.75276338,0.00030137,5]
[421454682,1777689045000,-1571.2244323,0.00030137,120]
[421454681,1777689045000,-4262.37564656,0.00030137,120]
[421454683,1777689045000,-200.0,0.00030137,2]
[421454686,1777689045000,-550.0,0.00030155,30]
[421454684,1777689045000,-200.0,0.00030137,2]
[421454687,1777689045000,-527.0,0.00030155,30]
[421454689,1777689045000,-500.0,0.00030173,5]
[421454664,1777689045000,-200.0,0.00030104,30]
[421454678,1777689045000,-1000.0,0.00030137,120]
[421454662,1777689045000,-550.0,0.00030104,30]
[421454637,1777689045000,-240.06159198,0.0002999,2]
[421454660,1777689045000,-168.103889,0.00030062,7]
[421454636,1777689045000,-232.0,0.00029985,30]
[421454638,1777689045000,-8000.0,0.0003,3]
[421454690,1777689045000,-15727.61261046,0.000302,2]
[421454640,1777689045000,-2000.0,0.0003,3]
[421454639,1777689045000,-20111.11711676,0.0003,2]
[421454642,1777689045000,-1839.714219,0.0003,2]
[421454645,1777689045000,-20253.86,0.0003,2]
[421454641,1777689045000,-323.12623519,0.0003,2]
[421454644,1777689045000,-310.36484106,0.0003,2]
[421454643,1777689045000,-164.98778801,0.0003,2]
[421454647,1777689045000,-1500.0,0.0003,2]
[421454646,1777689045000,-4079.11,0.0003,2]
[421454648,1777689045000,-155.36304627,0.0003,30]
[421454649,1777689045000,-161.0,0.0003002,30]
[421454650,1777689045000,-254.0,0.0003002,30]
[421454653,1777689045000,-150.0,0.00030028,30]
[421454652,1777689045000,-207.0,0.00030028,30]
[421454651,1777689045000,-250.0,0.00030028,30]
[421454654,1777689045000,-150.0,0.00030028,30]
[421454655,1777689045000,-150.0,0.00030028,30]
[421454656,1777689045000,-209.0,0.00030028,30]
[421454658,1777689045000,-151.0,0.00030062,7]
[421454657,1777689045000,-151.0,0.00030062,7]
[421454661,1777689045000,-3294.38550718,0.000301,2]
[421454659,1777689045000,-151.0,0.00030062,7]
[421454663,1777689045000,-477.0,0.00030104,30]
[421454688,1777689045000,-292.0,0.00030155,30]
[421454701,1777689045000,-300.0,0.00030241,30]
[421454693,1777689045000,-151.0,0.000302,7]
[421454723,1777689045000,-151.86465197,0.000306,7]
[421454725,1777689045000,-153.75816075,0.000306,7]
[421454724,1777689045000,-150.0,0.000306,7]
[421454727,1777689045000,-150.0,0.000306,7]
[421454728,1777689045000,-150.0,0.00030601,2]
[421454726,1777689045000,-153.76515705,0.000306,7]
[421454733,1777689045000,-150.0,0.00030601,2]
[421454732,1777689045000,-150.0,0.00030601,2]
[421454734,1777689045000,-150.0,0.00030601,2]
[421454729,1777689045000,-150.0,0.00030601,2]
[421454731,1777689045000,-150.0,0.00030601,2]
[421454722,1777689045000,-150.0,0.000306,7]
[421454736,1777689045000,-260.0,0.00030601,2]
[421454691,1777689045000,-150.52118521,0.000302,120]
[421454735,1777689045000,-150.0,0.00030601,2]
[421454737,1777689045000,-274.98364942,0.00030631,7]
[421454741,1777689045000,-200.0,0.00030743,2]
[421454740,1777689045000,-200.0,0.00030743,2]
[421454742,1777689045000,-1628.83668289,0.0003084,2]
[421454743,1777689045000,-159.6,0.000309,120]
[421454744,1777689045000,-700.0,0.000309,120]
[421454745,1777689045000,-700.0,0.000309,120]
[421454746,1777689045000,-695.0,0.000309,120]
[421454747,1777689045000,-150.0,0.00030919,2]
[421454739,1777689045000,-150.02,0.00030685,2]
[421454721,1777689045000,-15660.34,0.000306,7]
[421454738,1777689045000,-150.0,0.00030685,30]
[421454719,1777689045000,-850.0,0.00030512,2]
[421454717,1777689045000,-850.0,0.00030512,2]
[421454694,1777689045000,-151.0,0.000302,7]
[421454695,1777689045000,-151.0,0.000302,7]
[421454696,1777689045000,-5417.97874585,0.00030232,2]
[421454692,1777689045000,-400.71,0.000302,2]
[421454698,1777689045000,-300.0,0.00030241,30]
[421454702,1777689045000,-300.0,0.00030241,30]
[421454699,1777689045000,-300.0,0.00030241,30]
[421454700,1777689045000,-300.0,0.00030241,30]
[421454703,1777689045000,-204.0,0.00030241,30]
[421454704,1777689045000,-225.0,0.00030241,30]
[421454706,1777689045000,-500.0,0.00030282,120]
[421454697,1777689045000,-478.3,0.00030239,2]
[421454705,1777689045000,-500.0,0.00030249,2]
[421454715,1777689045000,-850.0,0.00030512,2]
[421454707,1777689045000,-1660.23238771,0.00030387,2]
[421454720,1777689045000,-732.0,0.00030512,2]
[421454718,1777689045000,-850.0,0.00030512,2]
[421454713,1777689045000,-850.0,0.00030512,2]
[421454710,1777689045000,-200.0,0.00030438,2]
[421454716,1777689045000,-850.0,0.00030512,2]
[421454712,1777689045000,-850.0,0.00030512,2]
[421454714,1777689045000,-850.0,0.00030512,2]
[421454711,1777689045000,-850.0,0.00030512,2]
[421454709,1777689045000,-200.0,0.00030438,2]
[421454708,1777689045000,-250.0,0.00030421,5]
[421454771,1777689046000,-250.0,0.00031072,2]
[421454765,1777689046000,-250.0,0.00031072,2]
[421454768,1777689046000,-250.0,0.00031072,2]
[421454770,1777689046000,-250.0,0.00031072,2]
[421454767,1777689046000,-250.0,0.00031072,2]
[421454773,1777689046000,-250.0,0.00031072,2]
[421454782,1777689046000,-250.0,0.00031076,2]
[421454778,1777689046000,-250.0,0.00031076,2]
[421454776,1777689046000,-250.0,0.00031076,2]
[421454779,1777689046000,-250.0,0.00031076,2]
[421454791,1777689046000,-1205.0,0.00031126,30]
[421454784,1777689046000,-250.0,0.00031076,2]
[421454769,1777689046000,-250.0,0.00031072,2]
[421454774,1777689046000,-352.0,0.00031072,2]
[421454786,1777689046000,-250.0,0.00031076,2]
[421454751,1777689046000,-192.0,0.00030919,2]
[421454764,1777689046000,-3225.08662574,0.0003107,2]
[421454748,1777689046000,-150.0,0.00030919,2]
[421454750,1777689046000,-150.0,0.00030919,2]
[421454749,1777689046000,-150.0,0.00030919,2]
[421454753,1777689046000,-350.0,0.00030968,5]
[421454752,1777689046000,-5417.97874585,0.00030965,2]
[421454754,1777689046000,-348.41786435,0.00031,5]
[421454766,1777689046000,-250.0,0.00031072,2]
[421454755,1777689046000,-550.0,0.00031,120]
[421454756,1777689046000,-550.0,0.00031,120]
[421454758,1777689046000,-700.0,0.00031,2]
[421454760,1777689046000,-150.0,0.00031,120]
[421454759,1777689046000,-198.0,0.00031,120]
[421454761,1777689046000,-177.0,0.00031,120]
[421454762,1777689046000,-150.0,0.00031011,2]
[421454757,1777689046000,-445.0,0.00031,120]
[421454763,1777689046000,-200.0,0.0003105,2]
[421454787,1777689046000,-250.0,0.00031076,2]
[421454792,1777689046000,-393.0,0.00031126,30]
[421454816,1777689046000,-5495.28138736,0.00031645,30]
[421454817,1777689046000,-312.6040984,0.00031674,60]
[421454819,1777689046000,-154.1054953,0.00031674,60]
[421454818,1777689046000,-480.0,0.00031674,60]
[421454821,1777689046000,-262.0,0.00031681,60]
[421454820,1777689046000,-183.5386809,0.00031674,60]
[421454815,1777689046000,-1000.0,0.00031542,5]
[421454822,1777689046000,-5417.97874585,0.00031699,2]
[421454825,1777689046000,-1108.76283812,0.00032,120]
[421454826,1777689046000,-588.10093372,0.00032,120]
[421454827,1777689046000,-2724.68574437,0.00032013,2]
[421454828,1777689046000,-639.42,0.00026637,2]
[421454829,1777689046000,-319.71,0.00026637,2]
[421454789,1777689046000,-267.0,0.00031076,2]
[421454824,1777689046000,-1754.58320495,0.00032,2]
[421454814,1777689046000,-450.0,0.00031516,5]
[421454823,1777689046000,-2700.0,0.000319,11]
[421454813,1777689046000,-15660.34,0.000315,7]
[421454812,1777689046000,-150.0,0.000315,2]
[421454796,1777689046000,-419.0,0.00031126,30]
[421454799,1777689046000,-198.0,0.00031126,30]
[421454797,1777689046000,-158.0,0.00031126,30]
[421454794,1777689046000,-153.0,0.00031126,30]
[421454802,1777689046000,-334.0,0.00031132,30]
[421454803,1777689046000,-154.0,0.00031132,30]
[421454801,1777689046000,-1820.0,0.00031126,30]
[421454804,1777689046000,-237.0,0.00031132,30]
[421454807,1777689046000,-150.0,0.00031132,30]
[421454805,1777689046000,-346.0,0.00031132,30]
[421454809,1777689046000,-152.0,0.00031393,4]
[421454808,1777689046000,-286.0,0.00031132,30]
[421454810,1777689046000,-15416.04,0.000314,7]
[421454811,1777689046000,-199.83330651,0.000315,2]
[421454806,1777689046000,-150.0,0.00031132,30]
[421454832,1777689091000,2500.0,0.00029546,120]
[421454834,1777689313000,383.42,0.00011,2]
[421454855,1777690232000,-154.17254677,0.00017366,7]
[421454851,1777690232000,-278.32441403,0.00016474,2]
[421454856,1777690232000,-203.56369849,0.00017432,2]
[421454848,1777690232000,-38.22957871,0.00015,2]
[421454847,1777690232000,-160.0,0.00015,2]
[421454846,1777690232000,-383.42,0.000141,2]
[421454853,1777690232000,-555.7890821,0.00016474,2]
[421454859,1777690232000,-168.31556338,0.00017433,2]
[421454845,1777690232000,-250.0,0.00013,2]
[421454852,1777690232000,-550.23948953,0.00016474,2]
[421454850,1777690232000,-159.4,0.00016438,2]
[421454849,1777690232000,-261.77042129,0.00015,2]
[421454857,1777690232000,-477.0558266,0.00017432,2]
[421454858,1777690232000,-519.38047491,0.00017432,2]
[421454854,1777690232000,-350.0,0.00017,2]
[421454867,1777690238000,-80.61952509,0.00017433,2]
[421454866,1777690238000,-519.38047491,0.00017433,2]
[421454875,1777690240000,-500.0,0.00017532,2]
[421454870,1777690240000,-15877.43437491,0.00017433,2]
[421454873,1777690240000,-210.80134648,0.00017532,2]
[421454874,1777690240000,-500.0,0.00017532,2]
[421454871,1777690240000,-172.78457871,0.00017435,2]
[421454872,1777690240000,-1841.90364693,0.00017502,2]
[421454878,1777690240000,-2985.31878603,0.00017532,2]
[421454880,1777690240000,-2985.31878603,0.00017532,2]
[421454879,1777690240000,-500.0,0.00017532,2]
[421454876,1777690240000,-290.71518889,0.00017532,2]
[421454877,1777690240000,-415.11028572,0.00017532,2]
[421454881,1777690240000,-500.0,0.00017532,2]
[421454882,1777690240000,-500.0,0.00017532,2]
[421454925,1777690241000,-2985.31878603,0.00017532,2]
[421454918,1777690241000,-2985.31878603,0.00017532,2]
[421454921,1777690241000,-2985.31878603,0.00017532,2]
[421454927,1777690241000,-2985.31878603,0.00017532,2]
[421454920,1777690241000,-2985.31878603,0.00017532,2]
[421454919,1777690241000,-2985.31878603,0.00017532,2]
[421454922,1777690241000,-2985.31878603,0.00017532,2]
[421454917,1777690241000,-2985.31878603,0.00017532,2]
[421454913,1777690241000,-2985.31878603,0.00017532,2]
[421454916,1777690241000,-2985.31878603,0.00017532,2]
[421454924,1777690241000,-2985.31878603,0.00017532,2]
[421454923,1777690241000,-2985.31878603,0.00017532,2]
[421454941,1777690241000,-1813.34615778,0.00017639,2]
[421454929,1777690241000,-2985.31878603,0.00017532,2]
[421454910,1777690241000,-2985.31878603,0.00017532,2]
[421454932,1777690241000,-2985.31878603,0.00017532,2]
[421454928,1777690241000,-2985.31878603,0.00017532,2]
[421454930,1777690241000,-2985.31878603,0.00017532,2]
[421454931,1777690241000,-2985.31878603,0.00017532,2]
[421454939,1777690241000,-257237.7068,0.00017536,2]
[421454940,1777690241000,-2000.0,0.00017603,2]
[421454934,1777690241000,-2985.31878603,0.00017532,2]
[421454933,1777690241000,-2985.31878603,0.00017532,2]
[421454935,1777690241000,-500.0,0.00017535,2]
[421454937,1777690241000,-150.99,0.00017536,2]
[421454943,1777690241000,-500.0,0.00017809,2]
[421454942,1777690241000,-200.0,0.0001774,2]
[421454926,1777690241000,-2985.31878603,0.00017532,2]
[421454909,1777690241000,-2985.31878603,0.00017532,2]
[421454903,1777690241000,-2985.31878603,0.00017532,2]
[421454912,1777690241000,-2985.31878603,0.00017532,2]
[421454944,1777690241000,-500.0,0.00018083,2]
[421454889,1777690241000,-2985.31878603,0.00017532,2]
[421454888,1777690241000,-2985.31878603,0.00017532,2]
[421454885,1777690241000,-500.0,0.00017532,2]
[421454884,1777690241000,-2985.31878603,0.00017532,2]
[421454886,1777690241000,-2985.31878603,0.00017532,2]
[421454883,1777690241000,-2985.31878603,0.00017532,2]
[421454887,1777690241000,-2985.31878603,0.00017532,2]
[421454891,1777690241000,-2985.31878603,0.00017532,2]
[421454901,1777690241000,-2985.31878603,0.00017532,2]